fUSD/lending_fUSD_20260503
["ID","MTS","AMOUNT","RATE_DAILY","PERIOD"]
[421508774,1777782641000,-500.0,0.00013699,2]
[421508769,1777782641000,-2102939.31323049,0.00013643,2]
[421508771,1777782641000,-505.75184283,0.00013698,2]
[421508797,1777782641000,-501.73372211,0.00013742,2]
[421508782,1777782641000,-644.42827504,0.00013699,2]
[421508807,1777782641000,-500.0,0.00014198,2]
[421508780,1777782641000,-500.0,0.00013699,2]
[421508806,1777782641000,-500.0,0.0001419,2]
[421508822,1777782641000,-389.0,0.00014733,2]
[421508823,1777782641000,-500.0,0.00014738,2]
[421508825,1777782641000,-394.0,0.00014767,2]
[421508826,1777782641000,-500.0,0.00014772,2]
[421508829,1777782641000,-6381.96071931,0.00014773,2]
[421508828,1777782641000,-394.0,0.00014773,2]
[421508833,1777782641000,-389.0,0.00014804,2]
[421508834,1777782641000,-389.0,0.00014816,2]
[421508827,1777782641000,-330.77350426,0.00014772,2]
[421508830,1777782641000,-529.0,0.00014774,2]
[421508831,1777782641000,-394.0,0.00014799,2]
[421508832,1777782641000,-394.0,0.000148,2]
[421508836,1777782641000,-394.0,0.00014826,2]
[421508835,1777782641000,-394.0,0.0001482,2]
[421508802,1777782641000,-668967.3607,0.00013743,2]
[421508824,1777782641000,-394.0,0.00014746,2]
[421508817,1777782641000,-601.75476521,0.00014198,2]
[421508789,1777782641000,-500.0,0.00013699,2]
[421508818,1777782641000,-5072.24847601,0.00014226,2]
[421508803,1777782641000,-500.0,0.00013916,2]
[421508804,1777782641000,-359.36,0.00013986,2]
[421508801,1777782641000,-500.0,0.00013742,2]
[421508805,1777782641000,-178.94,0.00013986,2]
[421508810,1777782641000,-500.0,0.00014198,2]
[421508815,1777782641000,-500.0,0.00014198,2]
[421508811,1777782641000,-500.0,0.00014198,2]
[421508816,1777782641000,-500.0,0.00014198,2]
[421508812,1777782641000,-366.16063472,0.00014198,2]
[421508821,1777782641000,-255.0,0.00014652,2]
[421508820,1777782641000,-21809.75173137,0.0001456,2]
[421508809,1777782641000,-500.0,0.00014198,2]
[421508814,1777782641000,-500.0,0.00014198,2]
[421508813,1777782641000,-177.20830365,0.00014198,2]
[421508819,1777782641000,-500.0,0.00014464,2]
[421508878,1777782642000,-447.19,0.00016116,2]
[421508887,1777782642000,-150.0,0.00016415,2]
[421508879,1777782642000,-9999.99,0.00016116,2]
[421508877,1777782642000,-4999.99,0.00016116,2]
[421508880,1777782642000,-432.67,0.00016116,2]
[421508869,1777782642000,-447.6138794,0.00015286,2]
[421508870,1777782642000,-500.0,0.00015425,2]
[421508888,1777782642000,-150.0,0.00016415,2]
[421508872,1777782642000,-1004.07861141,0.00015521,2]
[421508868,1777782642000,-1634.12725738,0.00015234,2]
[421508867,1777782642000,-250.0,0.00015039,2]
[421508876,1777782642000,-1008.5716395,0.00016068,2]
[421508886,1777782642000,-3292.0,0.0001631,2]
[421508884,1777782642000,-30949.67,0.00016116,2]
[421508881,1777782642000,-299.99,0.00016116,4]
[421508871,1777782642000,-315.0,0.00015476,2]
[421508885,1777782642000,-9537.76,0.00016116,2]
[421508882,1777782642000,-9999.99,0.00016116,2]
[421508901,1777782642000,-155.0,0.0002,2]
[421508890,1777782642000,-164.2,0.000165,2]
[421508900,1777782642000,-1624.03,0.00019845,2]
[421508902,1777782642000,-150.0,0.00020134,2]
[421508892,1777782642000,-736.0,0.00017158,2]
[421508889,1777782642000,-150.0,0.00016415,2]
[421508891,1777782642000,-9999.99,0.00016922,2]
[421508893,1777782642000,-992.08641641,0.00017688,2]
[421508899,1777782642000,-1624.03,0.00019373,2]
[421508897,1777782642000,-200.0,0.00018885,2]
[421508883,1777782642000,-360.75,0.00016116,2]
[421508866,1777782642000,-500.0,0.00015012,2]
[421508864,1777782642000,-394.0,0.00014995,2]
[421508865,1777782642000,-264013.30646127,0.00015,2]
[421508848,1777782642000,-394.0,0.00014888,2]
[421508838,1777782642000,-394.0,0.0001483,2]
[421508847,1777782642000,-271.61774381,0.00014886,2]
[421508841,1777782642000,-394.0,0.0001485,2]
[421508846,1777782642000,-389.0,0.00014884,2]
[421508837,1777782642000,-2351.0,0.00014827,2]
[421508839,1777782642000,-394.0,0.00014837,2]
[421508840,1777782642000,-394.0,0.00014838,2]
[421508845,1777782642000,-389.0,0.00014876,2]
[421508844,1777782642000,-394.0,0.00014874,2]
[421508842,1777782642000,-394.0,0.00014869,2]
[421508843,1777782642000,-394.0,0.00014869,2]
[421508849,1777782642000,-394.0,0.00014893,2]
[421508853,1777782642000,-394.0,0.00014954,2]
[421508854,1777782642000,-500.0,0.00014973,2]
[421508855,1777782642000,-408.34820023,0.00014973,2]
[421508860,1777782642000,-394.0,0.00014987,2]
[421508850,1777782642000,-394.0,0.00014915,2]
[421508851,1777782642000,-394.0,0.00014929,2]
[421508852,1777782642000,-7055.73674488,0.00014931,2]
[421508856,1777782642000,-500.0,0.00014973,2]
[421508857,1777782642000,-502.93754583,0.00014973,2]
[421508859,1777782642000,-501.4160514,0.00014973,2]
[421508858,1777782642000,-500.38384605,0.00014973,2]
[421508861,1777782642000,-389.0,0.0001499,2]
[421508896,1777782642000,-1061.58,0.00018856,2]
[421508873,1777782642000,-1000.0,0.00015521,2]
[421508862,1777782642000,-394.0,0.00014991,2]
[421508874,1777782642000,-433.0,0.00015858,2]
[421508875,1777782642000,-1002.25088546,0.00015973,2]
[421508863,1777782642000,-394.0,0.00014993,2]
[421508898,1777782642000,-1624.03,0.000189,2]
[421508894,1777782642000,-1634.12725738,0.00018508,2]
[421508935,1777782642000,-395.53766593,0.00027914,2]
[421508936,1777782642000,-317.77233482,0.00028551,2]
[421508932,1777782642000,-216.19,0.000274,7]
[421508938,1777782642000,-182.49,0.0002863,2]
[421508943,1777782642000,-182.49,0.00029232,7]
[421508944,1777782642000,-509.0,0.00029252,4]
[421508895,1777782642000,-266.0,0.00018566,2]
[421508954,1777782642000,-405.38080583,0.000316,2]
[421508945,1777782642000,-164.2,0.000293,7]
[421508949,1777782642000,-257.97,0.00029383,14]
[421508957,1777782642000,-691.64153846,0.00031693,2]
[421508955,1777782642000,-405.38080581,0.000316,2]
[421508950,1777782642000,-150.48,0.00029383,14]
[421508958,1777782642000,-155.0,0.0003216,30]
[421508953,1777782642000,-509.0,0.00031366,6]
[421508952,1777782642000,-155.0,0.0003116,30]
[421508956,1777782642000,-405.38080581,0.000316,2]
[421508951,1777782642000,-992.08641641,0.00029959,2]
[421508960,1777782642000,-12227.42,0.000322,7]
[421508959,1777782642000,-216.19,0.000322,7]
[421508962,1777782642000,-160.28,0.000324,14]
[421508961,1777782642000,-979.72108043,0.0003237,2]
[421508966,1777782642000,-155.0,0.0003316,30]
[421508967,1777782642000,-5528.0,0.000332,3]
[421508964,1777782642000,-700.0,0.0003287,2]
[421508963,1777782642000,-83033.0,0.000324,2]
[421508965,1777782642000,-387.06,0.000329,2]
[421508968,1777782642000,-509.0,0.00033481,8]
[421508969,1777782642000,-2247425.32847948,0.000337,2]
[421508937,1777782642000,-191.76,0.0002863,2]
[421508933,1777782642000,-160.28,0.000274,14]
[421508947,1777782642000,-257.98,0.00029383,14]
[421508931,1777782642000,-631.23,0.00027397,10]
[421508903,1777782642000,-1278.647,0.00020134,2]
[421508907,1777782642000,-164.2,0.00021,2]
[421508914,1777782642000,-173.73463106,0.00022407,2]
[421508906,1777782642000,-162.45035992,0.00020959,2]
[421508905,1777782642000,-1624.03,0.0002079,2]
[421508904,1777782642000,-1624.03,0.00020318,2]
[421508934,1777782642000,-12227.42,0.000274,7]
[421508912,1777782642000,-5000.0,0.00021918,2]
[421508910,1777782642000,-992.08641641,0.00021779,2]
[421508913,1777782642000,-155.0,0.00022,2]
[421508909,1777782642000,-1000.0,0.00021057,2]
[421508916,1777782642000,-159.81535961,0.00023,2]
[421508927,1777782642000,-1090.77,0.00027397,10]
[421508926,1777782642000,-182.49,0.00027397,7]
[421508908,1777782642000,-155.0,0.00021,2]
[421508917,1777782642000,-312.0,0.00024011,5]
[421508915,1777782642000,-915.15,0.00022562,2]
[421508941,1777782642000,-430.0,0.00029011,10]
[421508930,1777782642000,-757.48,0.00027397,10]
[421508928,1777782642000,-908.98,0.00027397,10]
[421508942,1777782642000,-191.77,0.00029232,7]
[421508939,1777782642000,-699.0,0.00029011,10]
[421508940,1777782642000,-1168.0,0.00029011,10]
[421508911,1777782642000,-1634.12725738,0.00021783,2]
[421508924,1777782642000,-191.76,0.00027397,7]
[421508921,1777782642000,-1634.12725738,0.00025057,2]
[421508919,1777782642000,-191.76,0.00024658,2]
[421508923,1777782642000,-509.0,0.00027137,2]
[421508922,1777782642000,-992.08641641,0.00025869,2]
[421508918,1777782642000,-173.22,0.00024658,2]
[421508920,1777782642000,-182.49,0.00024658,2]
[421508970,1777782643000,-24.97950466,0.00027836,30]
[421508971,1777782643000,-2975.02049534,0.00027836,30]
[421508975,1777782643000,-584.0,0.00029959,10]
[421508973,1777782643000,-3000.0,0.00029671,30]
[421508974,1777782643000,-350.0,0.00029959,10]
[421508972,1777782643000,-3000.0,0.0002874,30]
[421508976,1777782643000,-858.0,0.00029959,10]
[421508977,1777782643000,-1736.01857527,0.000337,2]
[421508980,1777782646000,-1634.12725738,0.00028332,2]
[421508985,1777782646000,-23244.14439504,0.000337,2]
[421508983,1777782646000,-184.67,0.00030136,30]
[421508984,1777782646000,-646.84,0.00030575,30]
[421508982,1777782646000,-184.67,0.00029232,7]
[421508981,1777782646000,-184.66,0.0002863,2]
[421508978,1777782646000,-184.67,0.00024658,2]
[421508979,1777782646000,-184.67,0.00027397,7]
[421508987,1777782664000,5000.0,0.00014897,120]
[421508988,1777782664000,4851.11261292,0.00017675,120]
[421509020,1777783832000,-299.99,0.00020951,7]
[421509019,1777783832000,-1436.84,0.00020951,2]
[421509017,1777783832000,-250.31297905,0.00017996,2]
[421509018,1777783832000,-3320.29,0.00017996,2]
[421509016,1777783832000,-9999.99,0.00017845,2]
[421509014,1777783832000,-8108.6183969,0.00017028,2]
[421509015,1777783832000,-999.99,0.00017845,2]
[421509012,1777783832000,-27515.62881809,0.00017028,2]
[421509013,1777783832000,-792.7725362,0.00017028,2]
[421509010,1777783832000,-2569.06892338,0.00017028,2]
[421509011,1777783832000,-317.86068403,0.00017028,2]
[421509009,1777783832000,-150.0,0.00017027,2]
[421509008,1777783832000,-300.58970933,0.00014982,2]
[421509006,1777783832000,-250.0,0.00014897,2]
[421509007,1777783832000,-204.95690782,0.00014982,2]
[421509002,1777783832000,-31.53439747,0.00013698,2]
[421509001,1777783832000,-500.0,0.00013698,2]
[421509003,1777783832000,-468.46560253,0.00013698,2]
[421509005,1777783832000,-250.0,0.0001374,2]
[421509004,1777783832000,-603.31885694,0.00013698,2]
[421509000,1777783832000,-500.0,0.00013698,2]
[421508997,1777783832000,-300.0,0.00013697,2]
[421508999,1777783832000,-435.79075692,0.00013698,2]
[421508995,1777783832000,-349.30213,0.00013697,2]
[421508996,1777783832000,-309.69787,0.00013697,2]
[421508998,1777783832000,-64.20924308,0.00013698,2]
[421508994,1777783832000,-250.0,0.0001362,2]
[421509021,1777783832000,-895.0,0.00021,2]
[421509023,1777783832000,-38581.90564838,0.00021122,2]
[421509079,1777783832000,-5677.26708811,0.00025804,2]
[421509025,1777783832000,-2500.0,0.00021222,2]
[421509022,1777783832000,-1666.0,0.00021,2]
[421509078,1777783832000,-22831.13513793,0.00025804,2]
[421509077,1777783832000,-169.05,0.00024871,2]
[421509076,1777783832000,-6033.0,0.00024807,2]
[421509075,1777783832000,-928.0,0.00024807,2]
[421509072,1777783832000,-8108.6183969,0.00024407,2]
[421509066,1777783832000,-304.66776923,0.00024406,2]
[421509064,1777783832000,-500.0,0.00024406,2]
[421509062,1777783832000,-267.62485987,0.00024406,2]
[421509068,1777783832000,-30402.5584255,0.00024407,2]
[421509061,1777783832000,-187.83643052,0.00024406,2]
[421509056,1777783832000,-500.0,0.00024406,2]
[421509052,1777783832000,-190.11,0.00024185,2]
[421509050,1777783832000,-1242.07795612,0.00023805,2]
[421509070,1777783832000,-792.7725362,0.00024407,2]
[421509046,1777783832000,-1238.65,0.00022562,2]
[421509054,1777783832000,-197.79882474,0.00024406,2]
[421509030,1777783832000,-211.26772661,0.00021309,2]
[421509027,1777783832000,-200.0,0.00021309,2]
[421509028,1777783832000,-151.0,0.00021309,2]
[421509032,1777783832000,-163099.7453,0.00021322,2]
[421509034,1777783832000,-1242.07795618,0.00021507,2]
[421509036,1777783832000,-3532.0,0.00021807,2]
[421509040,1777783832000,-6039.0,0.00021807,2]
[421509044,1777783832000,-190.11,0.00021987,2]
[421509042,1777783832000,-202.02219804,0.00021857,2]
[421509058,1777783832000,-500.0,0.00024406,2]
[421509048,1777783832000,-38581.90564829,0.00023463,2]
[421509038,1777783832000,-939.953,0.00021807,2]
[421509095,1777783838000,-509.0,0.00027137,2]
[421509094,1777783838000,-174.61919141,0.00027049,2]
[421509096,1777783838000,-200.0,0.00027307,2]
[421509097,1777783838000,-158.37365052,0.00027597,2]
[421509093,1777783838000,-151.0,0.00027049,2]
[421509092,1777783838000,-1328.27659266,0.00027049,2]
[421509084,1777783838000,-304.0,0.00021321,2]
[421509089,1777783838000,-10073.50342225,0.00025804,2]
[421509088,1777783838000,-500.0,0.00021321,2]
[421509087,1777783838000,-250.61814001,0.00021321,2]
[421509085,1777783838000,-196.0,0.00021321,2]
[421509086,1777783838000,-516.04758612,0.00021321,2]
[421509099,1777783838000,-38581.90564829,0.00028145,2]
[421509091,1777783838000,-280.0,0.00027041,2]
[421509100,1777783838000,-355.0,0.000284,2]
[421509090,1777783838000,-1242.07795612,0.00026103,2]
[421509101,1777783838000,-1242.07795612,0.00028401,2]
[421509102,1777783838000,-415.0,0.00029011,10]
[421509105,1777783838000,-430.0,0.00029011,10]
[421509107,1777783838000,-730.0,0.00029011,10]
[421509109,1777783838000,-509.0,0.00029654,4]
[421509111,1777783838000,-200.0,0.00030214,2]
[421509128,1777783838000,-243.22848348,0.000316,2]
[421509113,1777783838000,-38581.90564829,0.00030486,2]
[421509115,1777783838000,-1242.07795612,0.00030699,2]
[421509116,1777783838000,-928.0,0.00030807,2]
[421509119,1777783838000,-200.0,0.0003106,2]
[421509131,1777783838000,-9374.19526696,0.00031786,2]
[421509121,1777783838000,-155.0,0.00031145,30]
[421509126,1777783838000,-243.22848348,0.000316,2]
[421509123,1777783838000,-243.22848351,0.000316,2]
[421509098,1777783838000,-928.0,0.00027807,2]
[421509174,1777783840000,-3032.20722519,0.00031786,2]
[421509173,1777783840000,-500.0,0.00019781,2]
[421509211,1777783843000,-155.0,0.00034145,30]
[421509210,1777783843000,-5528.0,0.000341,5]
[421509209,1777783843000,-700.0,0.0003397,2]
[421509207,1777783843000,-400.0,0.0003397,2]
[421509212,1777783843000,-315.41211322,0.00034346,9]
[421509208,1777783843000,-400.0,0.0003397,2]
[421509205,1777783843000,-236.09263514,0.000337,7]
[421509206,1777783843000,-438.36,0.0003396,10]
[421509204,1777783843000,-235.53451109,0.000337,7]
[421509203,1777783843000,-248.0,0.000337,5]
[421509197,1777783843000,-107874.2495,0.0003358,2]
[421509202,1777783843000,-3539.28992609,0.00033699,2]
[421509201,1777783843000,-151.0,0.00033697,14]
[421509200,1777783843000,-365.3,0.0003369,10]
[421509199,1777783843000,-526.03,0.0003369,10]
[421509186,1777783843000,-916.0,0.00031786,30]
[421509195,1777783843000,-11996.93,0.0003354,2]
[421509181,1777783843000,-418.69223597,0.00025288,2]
[421509183,1777783843000,-17996.15593335,0.00031786,2]
[421509182,1777783843000,-81.30776403,0.00025288,2]
[421509184,1777783843000,-792.7725362,0.00031786,2]
[421509189,1777783843000,-155.0,0.00032145,30]
[421509185,1777783843000,-8108.6183969,0.00031786,2]
[421509187,1777783843000,-727.0,0.00031786,30]
[421509188,1777783843000,-200.0,0.00031906,2]
[421509214,1777783843000,-509.0,0.00034689,10]
[421509191,1777783843000,-200.0,0.00032751,2]
[421509190,1777783843000,-509.0,0.00032172,7]
[421509193,1777783843000,-1242.07795612,0.00032998,2]
[421509192,1777783843000,-38581.90564829,0.00032826,2]
[421509194,1777783843000,-155.0,0.00033145,30]
[421509196,1777783843000,-500.0,0.0003354,30]
[421509198,1777783843000,-200.0,0.00033597,2]
[421509213,1777783843000,-200.0,0.00034443,2]
[421509225,1777783843000,-150.0,0.00037332,7]
[421509217,1777783843000,-200.0,0.00035289,2]
[421509237,1777783843000,-14419.40038424,0.00037508,2]
[421509236,1777783843000,-733.0,0.00032751,30]
[421509238,1777783843000,-1242.07795612,0.00037594,2]
[421509239,1777783843000,-5000.0,0.00037786,2]
[421509240,1777783843000,-192.11824121,0.000378,2]
[421509241,1777783843000,-222.44596096,0.000378,12]
[421509215,1777783843000,-1991.612,0.00034712,39]
[421509246,1777783843000,-743.19,0.00038034,30]
[421509244,1777783843000,-172.95,0.000379,30]
[421509249,1777783843000,-400.0,0.0003867,2]
[421509245,1777783843000,-150.0,0.00037924,7]
[421509248,1777783843000,-150.0,0.00038517,7]
[421509247,1777783843000,-433.54703849,0.00038356,10]
[421509250,1777783843000,-819914.6554589,0.000387,2]
[421509242,1777783843000,-454.0,0.00037886,5]
[421509234,1777783843000,-1106.92659472,0.00037508,2]
[421509235,1777783843000,-2590.96888089,0.00037508,2]
[421509232,1777783843000,-20172.69380753,0.00037508,2]
[421509216,1777783843000,-38581.90564829,0.00035167,2]
[421509218,1777783843000,-1242.07795612,0.00035296,2]
[421509219,1777783843000,-200.0,0.00036135,2]
[421509220,1777783843000,-200.0,0.0003698,2]
[421509221,1777783843000,-188.30264234,0.000372,120]
[421509233,1777783843000,-291.91598091,0.00037508,2]
[421509223,1777783843000,-509.0,0.00037206,13]
[421509226,1777783843000,-232.26543517,0.00037332,7]
[421509224,1777783843000,-150.0,0.00037332,30]
[421509227,1777783843000,-150.0,0.00037332,7]
[421509229,1777783843000,-150.0,0.00037332,7]
[421509228,1777783843000,-150.0,0.00037332,7]
[421509230,1777783843000,-304.41,0.0003749,10]
[421509231,1777783843000,-3200.0,0.000375,120]
[421509222,1777783843000,-188.30264233,0.000372,120]
[421509243,1777783843000,-264701.77198594,0.00037886,2]
[421509253,1777783846000,-500.0,0.00032822,2]
[421509252,1777783846000,-1663.0,0.00021807,2]
[421509254,1777783846000,-46541.71650335,0.000387,2]
[421509255,1777783846000,-3682.04121702,0.000387,2]
[421509257,1777783846000,-3637.97003752,0.000387,2]
[421509256,1777783846000,-509.0,0.000387,2]
[421509258,1777783846000,-653.74439782,0.000387,2]
[421509269,1777785028000,5081.0,0.00030136,120]
[421509274,1777785032000,-151.0,0.00017642,2]
[421509273,1777785032000,-150.0,0.00015969,30]
[421509275,1777785032000,-153.0,0.00017642,2]
[421509277,1777785032000,-152.0,0.00017642,2]
[421509279,1777785032000,-151.0,0.00017642,2]
[421509276,1777785032000,-151.0,0.00017642,2]
[421509278,1777785032000,-151.0,0.00017642,2]
[421509280,1777785032000,-151.0,0.00017642,2]
[421509283,1777785032000,-75.0,0.00017642,2]
[421509281,1777785032000,-150.0,0.00017642,2]
[421509287,1777785032000,-151.0,0.00017642,2]
[421509282,1777785032000,-151.0,0.00017642,2]
[421509284,1777785032000,-75.0,0.00017642,2]
[421509296,1777785032000,-37.8392174,0.00017642,2]
[421509295,1777785032000,-300.0,0.00017642,2]
[421509294,1777785032000,-150.0,0.00017642,2]
[421509285,1777785032000,-150.0,0.00017642,2]
[421509293,1777785032000,-152.0,0.00017642,2]
[421509291,1777785032000,-26.55446076,0.00017642,2]
[421509290,1777785032000,-124.44553924,0.00017642,2]
[421509288,1777785032000,-6.48994099,0.00017642,2]
[421509289,1777785032000,-144.51005901,0.00017642,2]
[421509286,1777785032000,-151.0,0.00017642,2]
[421509292,1777785032000,-150.0,0.00017642,2]
[421509332,1777785040000,-1659.7180654,0.00017642,2]
[421509329,1777785040000,-124.65184794,0.00017642,2]
[421509328,1777785040000,-212.1607826,0.00017642,2]
[421509330,1777785040000,-137.4255178,0.00017642,2]
[421509331,1777785040000,-199.63410878,0.00017642,2]
[421509333,1777785040000,-366.85624286,0.00017642,2]
[421509340,1777785040000,-152.0,0.00017643,2]
[421509334,1777785040000,-273.79158296,0.00017642,2]
[421509336,1777785040000,-2500.0,0.00017643,2]
[421509337,1777785040000,-2500.0,0.00017643,2]
[421509338,1777785040000,-2500.0,0.00017643,2]
[421509339,1777785040000,-150.0,0.00017643,2]
[421509341,1777785040000,-151.0,0.00017643,2]
[421509335,1777785040000,-250.0,0.00017643,2]
[421509356,1777785041000,-151.0,0.00017644,2]
[421509355,1777785041000,-151.0,0.00017644,2]
[421509353,1777785041000,-151.0,0.00017643,2]
[421509352,1777785041000,-151.0,0.00017643,2]
[421509350,1777785041000,-150.0,0.00017643,2]
[421509351,1777785041000,-151.0,0.00017643,2]
[421509349,1777785041000,-151.0,0.00017643,2]
[421509347,1777785041000,-152.0,0.00017643,2]
[421509346,1777785041000,-151.0,0.00017643,2]
[421509345,1777785041000,-151.0,0.00017643,2]
[421509343,1777785041000,-151.0,0.00017643,2]
[421509344,1777785041000,-152.0,0.00017643,2]
[421509342,1777785041000,-152.0,0.00017643,2]
[421509354,1777785041000,-151.0,0.00017644,2]
[421509348,1777785041000,-152.0,0.00017643,2]
[421509357,1777785041000,-151.0,0.00017644,2]
[421509373,1777785041000,-2135.10713046,0.00017645,2]
[421509360,1777785041000,-150.0,0.00017644,2]
[421509372,1777785041000,-150.0,0.00017645,2]
[421509371,1777785041000,-152.0,0.00017645,2]
[421509358,1777785041000,-151.0,0.00017644,2]
[421509370,1777785041000,-152.0,0.00017645,2]
[421509368,1777785041000,-151.0,0.00017645,2]
[421509367,1777785041000,-151.0,0.00017645,2]
[421509369,1777785041000,-151.0,0.00017645,2]
[421509366,1777785041000,-150.0,0.00017644,2]
[421509364,1777785041000,-150.0,0.00017644,2]
[421509363,1777785041000,-151.0,0.00017644,2]
[421509361,1777785041000,-150.0,0.00017644,2]
[421509362,1777785041000,-151.0,0.00017644,2]
[421509359,1777785041000,-151.0,0.00017644,2]
[421509365,1777785041000,-151.0,0.00017644,2]
[421509374,1777785041000,-3093.41928878,0.00017645,2]
[421509388,1777785046000,-938.78645993,0.00017645,2]
[421509387,1777785046000,-2454.16723922,0.00017645,2]
[421509389,1777785047000,-432.1243833,0.00017645,2]
[421509392,1777785048000,-3739.69729021,0.00017645,2]
[421509391,1777785048000,-621.69315632,0.00017645,2]
[421509420,1777785636000,171.031,0.000287,120]
[421509421,1777785740000,500.79194964,0.00030137,120]
[421509422,1777785762000,189.685,0.000287,120]
[421509423,1777786153000,-2085.5424117,0.00015,2]
[421509438,1777786231000,-5880.0,0.00012,2]
[421509435,1777786231000,-851.12712388,0.00012,2]
[421509433,1777786231000,-164.2375718,0.00012,2]
[421509432,1777786231000,-4425.79074905,0.00012,2]
[421509434,1777786231000,-253.46543089,0.00012,2]
[421509431,1777786231000,-811.50471421,0.00012,2]
[421509436,1777786231000,-3554.07745107,0.00012,2]
[421509443,1777786237000,-471.11851838,0.0001,2]
[421509444,1777786237000,-425.76521297,0.0001,2]
[421509446,1777786237000,-256.9003798,0.00012,2]
[421509448,1777786237000,-2027.98034925,0.00012,2]
[421509447,1777786237000,-1076.55582393,0.00012,2]
[421509449,1777786237000,-1553.52,0.00012,2]
[421509445,1777786237000,-3118.27659578,0.00012,2]
[421509451,1777786237000,-6491.07,0.00012,2]
[421509452,1777786237000,-535.41792625,0.00012,2]
[421509450,1777786237000,-867.04626424,0.00012,2]
[421509453,1777786237000,-557.49671702,0.00012,2]
[421509710,1777786240000,-300.13246974,0.00012,2]
[421509707,1777786240000,-652.08200092,0.00012,2]
[421509701,1777786240000,-188973.46954013,0.00012,2]
[421509721,1777786240000,-250.0,0.000132,2]
[421509728,1777786240000,-476.77340503,0.00014999,2]
[421509723,1777786240000,-300.0,0.00014999,2]
[421509726,1777786240000,-1200.0,0.00014999,2]
[421509717,1777786240000,-122318.62234522,0.00012,2]
[421509719,1777786240000,-195.78929784,0.000132,2]
[421509742,1777786240000,-2022.0144629,0.00015,2]
[421509745,1777786240000,-1643.75478113,0.00015,2]
[421509747,1777786240000,-1147.126944,0.00015,2]
[421509738,1777786240000,-23.22659497,0.00014999,2]
[421509740,1777786240000,-413.26743846,0.00014999,2]
[421510020,1777786242000,-730.12479506,0.00015,2]
[421510093,1777786243000,-152.0,0.00018086,7]
[421510081,1777786243000,-150.0,0.00017744,2]
[421510084,1777786243000,-150.0,0.00017744,2]
[421510085,1777786243000,-150.0,0.00017744,2]
[421510086,1777786243000,-151.0,0.00017744,2]
[421510089,1777786243000,-150.0,0.00017745,2]
[421510088,1777786243000,-151.0,0.00017745,2]
[421510091,1777786243000,-587.0,0.00017966,2]
[421510087,1777786243000,-150.0,0.00017745,2]
[421510090,1777786243000,-151.0,0.00017745,2]
[421510095,1777786243000,-2500.0,0.00018792,2]
[421510098,1777786243000,-823.0,0.00019663,2]
[421510106,1777786243000,-162.45035992,0.00021319,2]
[421510097,1777786243000,-372.03240615,0.00019356,2]
[421510099,1777786243000,-409.30942638,0.00019785,2]
[421510096,1777786243000,-300.0,0.00018792,2]
[421510105,1777786243000,-404.0,0.00021022,2]
[421510102,1777786243000,-408.0,0.00021022,2]
[421510103,1777786243000,-220.33215597,0.00021022,2]
[421510104,1777786243000,-151.08935101,0.00021022,2]
[421510101,1777786243000,-252.99008915,0.00021022,2]
[421510094,1777786243000,-8607.32345316,0.00018599,2]
[421510082,1777786243000,-150.0,0.00017744,2]
[421510048,1777786243000,-420.0,0.00016416,2]
[421510079,1777786243000,-23961.1482526,0.00017644,2]
[421510100,1777786243000,-623.0,0.00020202,2]